bitfinex-derivatives/quotes_BTCF0:USTF0_20250703
["timestamp","ask_amount","ask_price","bid_price","bid_amount"]
[1751537005420,1.02102822,109910.0,109900.0,0.25578626]
[1751537005621,0.77578813,109910.0,109900.0,0.49578626]
[1751537005825,0.46578813,109910.0,109900.0,0.49578626]
[1751537006120,0.40248813,109910.0,109900.0,0.55658626]
[1751537006325,0.37198813,109910.0,109900.0,0.55658029]
[1751537006532,0.28103213,109910.0,109900.0,0.80182038]
[1751537006733,0.26103213,109910.0,109900.0,0.80182038]
[1751537007627,0.26103213,109910.0,109900.0,0.82899389]
[1751537010229,0.26103213,109910.0,109900.0,0.5837538]
[1751537010532,0.26103213,109910.0,109900.0,0.82899389]
[1751537012630,0.26103213,109910.0,109900.0,1.17505804]
[1751537013235,0.26103213,109910.0,109900.0,0.86505804]
[1751537013437,0.26103213,109910.0,109900.0,0.85120015]
[1751537013636,0.26103213,109910.0,109900.0,0.86480785]
[1751537014136,0.26103213,109910.0,109900.0,0.8754724]
[1751537014336,0.26103213,109910.0,109900.0,0.86480785]
[1751537014639,0.26103213,109910.0,109900.0,0.86478811]
[1751537015038,0.26103213,109910.0,109900.0,0.85118041]
[1751537015440,0.26103213,109910.0,109900.0,0.81511626]
[1751537015839,0.26103213,109910.0,109900.0,0.82881178]
[1751537017242,0.26103213,109910.0,109900.0,0.80165801]
[1751537017444,0.26103213,109910.0,109900.0,0.82881144]
[1751537018644,0.07911493,109910.0,109900.0,1.17881144]
[1751537018841,0.005,109910.0,109900.0,1.52131144]
[1751537019148,0.01517613,109920.0,109910.0,0.1819058]
[1751537019441,0.01517613,109920.0,109910.0,1.57647594]
[1751537019642,0.01517613,109920.0,109910.0,1.75843594]
[1751537019843,0.01517613,109920.0,109910.0,1.51319585]
[1751537020045,0.01517613,109920.0,109910.0,1.52243137]
[1751537020247,0.01517613,109920.0,109910.0,1.46833514]
[1751537020442,0.07108364,109930.0,109920.0,0.1818893]
[1751537020645,0.1818728,109930.0,109920.0,0.82776465]
[1751537021145,0.1818728,109930.0,109920.0,0.86395838]
[1751537021345,0.1818728,109930.0,109920.0,0.82776465]
[1751537022248,0.1848728,109930.0,109920.0,0.82876465]
[1751537023347,0.1858728,109930.0,109920.0,0.82876465]
[1751537023646,0.004,109930.0,109920.0,1.78650474]
[1751537023949,0.004,109930.0,109920.0,1.75936948]
[1751537024447,0.004,109930.0,109920.0,1.38936948]
[1751537024648,0.004,109930.0,109920.0,1.68936948]
[1751537025250,0.004,109930.0,109920.0,1.90750721]
[1751537025440,0.004,109930.0,109920.0,1.96160344]
[1751537026247,0.004,109930.0,109920.0,1.89841267]
[1751537026449,0.004,109930.0,109920.0,1.9346064]
[1751537026646,0.004,109930.0,109920.0,1.90750721]
[1751537027056,0.35344445,109960.0,109950.0,0.1818396]
[1751537027355,0.5992939,109960.0,109950.0,0.73326188]
[1751537027552,0.5992939,109960.0,109950.0,0.79866188]
[1751537027853,0.2292939,109960.0,109950.0,0.79866188]
[1751537028045,0.3992939,109960.0,109950.0,0.79866188]
[1751537028352,0.4304939,109960.0,109950.0,0.79866188]
[1751537028545,0.50982615,109960.0,109950.0,0.79966188]
[1751537029150,0.47862615,109960.0,109950.0,0.79966188]
[1751537029451,0.43316965,109960.0,109950.0,0.83086188]
[1751537029950,0.014,109960.0,109950.0,1.39610197]
[1751537030247,0.014,109960.0,109950.0,0.90562179]
[1751537030458,0.014,109960.0,109950.0,1.16044433]
[1751537030940,0.1958231,109960.0,109950.0,0.84044433]
[1751537031144,0.1958231,109960.0,109950.0,0.52122179]
[1751537031345,0.5990231,109960.0,109950.0,0.48902179]
[1751537031544,0.2690231,109960.0,109950.0,0.48902179]
[1751537032953,0.34127647,109960.0,109950.0,0.73426188]
[1751537036141,0.024,109960.0,109950.0,1.39180197]
[1751537036654,0.024,109960.0,109950.0,1.14656188]
[1751537037158,0.2058231,109960.0,109950.0,1.14656188]
[1751537042352,0.024,109960.0,109950.0,1.14656188]
[1751537042557,0.2058231,109960.0,109950.0,1.14656188]
[1751537045455,0.2383231,109960.0,109950.0,1.17359065]
[1751537045754,0.2383231,109960.0,109950.0,1.14289065]
[1751537045962,0.2795231,109960.0,109950.0,0.48902179]
[1751537046953,0.2795231,109960.0,109950.0,0.73426188]
[1751537047461,0.2795231,109960.0,109950.0,0.76129065]
[1751537049866,0.2795231,109960.0,109950.0,0.51605056]
[1751537050067,0.6295231,109960.0,109950.0,0.51605056]
[1751537050663,0.2695231,109960.0,109950.0,0.51605056]
[1751537050958,0.2695231,109960.0,109950.0,0.76129065]
[1751537051663,0.2695231,109960.0,109950.0,0.51605056]
[1751537051863,0.2695231,109960.0,109950.0,0.79740166]
[1751537052964,0.2695231,109960.0,109950.0,0.55216157]
[1751537053165,0.5895231,109960.0,109950.0,0.55216157]
[1751537053365,0.83476319,109960.0,109950.0,0.55216157]
[1751537053770,0.5895231,109960.0,109950.0,0.55216157]
[1751537054270,0.2895231,109960.0,109950.0,0.55216157]
[1751537054466,0.6195231,109960.0,109950.0,0.55216157]
[1751537055264,0.6195231,109960.0,109950.0,0.5251328]
[1751537055669,0.2795231,109960.0,109950.0,0.5251328]
[1751537055969,0.5995231,109960.0,109950.0,0.5251328]
[1751537056774,0.5995231,109960.0,109950.0,0.77037289]
[1751537058068,0.5995231,109960.0,109950.0,0.5251328]
[1751537058270,0.5995231,109960.0,109950.0,0.77037289]
[1751537059169,0.2595231,109960.0,109950.0,0.77037289]
[1751537059678,0.5895231,109960.0,109950.0,0.77037289]
[1751537059966,0.83476319,109960.0,109950.0,0.28922903]
[1751537060169,0.50476319,109960.0,109950.0,0.36922903]
[1751537060371,0.50476319,109960.0,109950.0,0.5651328]
[1751537060372,0.88476319,109960.0,109950.0,0.5651328]
[1751537060872,0.88476319,109960.0,109950.0,0.36711101]
[1751537061068,0.88476319,109960.0,109950.0,0.07430318]
[1751537061268,0.88476319,109960.0,109950.0,0.03819217]
[1751537062469,0.88476319,109960.0,109950.0,0.011]
[1751537063167,0.9391936,109960.0,109950.0,0.011]
[1751537064170,1.1210896,109960.0,109950.0,0.011]
[1751537064469,1.06665919,109960.0,109950.0,0.001]
[1751537064670,0.8214191,109960.0,109950.0,0.001]
[1751537064870,1.06665919,109960.0,109950.0,0.001]
[1751537066272,1.1210896,109960.0,109950.0,0.001]
[1751537068374,0.9391936,109960.0,109950.0,0.001]
[1751537068573,1.1210896,109960.0,109950.0,0.001]
[1751537068870,1.2721896,109960.0,109950.0,0.001]
[1751537069869,1.1210896,109960.0,109950.0,0.001]
[1751537070676,0.9391936,109960.0,109950.0,0.001]
[1751537075377,0.69395351,109960.0,109950.0,0.001]
[1751537075578,0.9391936,109960.0,109950.0,0.001]
[1751537076179,0.88476319,109960.0,109950.0,0.001]
[1751537077377,0.88476319,109960.0,109950.0,0.291]
[1751537077577,0.88476319,109960.0,109950.0,0.001]
[1751537083685,0.88476319,109960.0,109950.0,1e-07]
[1751537083883,0.9391936,109960.0,109950.0,1e-07]
[1751537085787,1.18443369,109960.0,109950.0,1e-07]
[1751537085986,1.36632969,109960.0,109950.0,1e-07]
[1751537086378,1.31189928,109960.0,109950.0,1e-07]
[1751537087490,1.38430091,109960.0,109950.0,1e-07]
[1751537088384,1.31189928,109960.0,109950.0,1e-07]
[1751537092587,1.13000328,109960.0,109950.0,1e-07]
[1751537093296,1.20240491,109960.0,109950.0,1e-07]
[1751537095588,1.21748713,109960.0,109950.0,1e-07]
[1751537096894,1.36858713,109960.0,109950.0,1e-07]
[1751537097794,1.55048313,109960.0,109950.0,1e-07]
[1751537098400,1.53540091,109960.0,109950.0,1e-07]
[1751537098694,1.55040253,109960.0,109950.0,1e-07]
[1751537099093,0.1818728,109930.0,109920.0,0.0617]
[1751537099294,0.82211718,109930.0,109920.0,0.0917]
[1751537099794,0.85281718,109930.0,109920.0,0.0917]
[1751537100295,0.85281718,109930.0,109920.0,0.0927]
[1751537100493,0.85481718,109930.0,109920.0,0.0927]
[1751537100891,0.82411718,109930.0,109920.0,0.0627]
[1751537102199,0.83348227,109930.0,109920.0,0.0627]
[1751537103804,0.83448227,109930.0,109920.0,0.0627]
[1751537106507,0.58924218,109930.0,109920.0,0.0627]
[1751537106708,0.83448227,109930.0,109920.0,0.0627]
[1751537107607,0.83448227,109930.0,109920.0,0.3727]
[1751537109509,0.19987709,109930.0,109920.0,0.79982939]
[1751537109707,0.19987709,109930.0,109920.0,0.82702156]
[1751537110012,0.52987709,109930.0,109920.0,0.64513226]
[1751537110206,0.52987709,109930.0,109920.0,0.82702156]
[1751537110609,0.19987709,109930.0,109920.0,0.82702156]
[1751537111115,0.57987709,109930.0,109920.0,0.82702156]
[1751537111514,0.19987709,109930.0,109920.0,0.82702156]
[1751537112016,0.19987709,109930.0,109920.0,0.86313257]
[1751537112203,0.19987709,109930.0,109920.0,0.58178147]
[1751537112406,0.19987709,109930.0,109920.0,0.83768517]
[1751537112905,0.19987709,109930.0,109920.0,0.86313257]
[1751537113306,0.19987709,109930.0,109920.0,0.87379607]
[1751537113502,0.54987709,109930.0,109920.0,0.87379607]
[1751537113716,0.19987709,109930.0,109920.0,0.87379607]
[1751537113913,0.19987709,109930.0,109920.0,0.8466039]
[1751537115408,0.19987709,109930.0,109920.0,0.60136381]
[1751537115608,0.19987709,109930.0,109920.0,0.8466039]
[1751537116315,0.19987709,109930.0,109920.0,0.8377493]
[1751537116812,0.19987709,109930.0,109920.0,1.09298939]
[1751537117014,0.19987709,109930.0,109920.0,0.8477493]
[1751537117308,0.19987709,109930.0,109920.0,0.87319681]
[1751537117515,0.19987709,109930.0,109920.0,0.88385985]
[1751537118216,0.19987709,109930.0,109920.0,0.84774884]
[1751537118610,0.19987709,109930.0,109920.0,0.84774886]
[1751537120217,0.57987709,109930.0,109920.0,0.84774886]
[1751537120716,0.19987709,109930.0,109920.0,0.84774886]
[1751537124124,0.52987709,109930.0,109920.0,0.84774886]
[1751537124327,0.56987709,109930.0,109920.0,0.83774886]
[1751537124622,0.56987709,109930.0,109920.0,0.8270858]
[1751537124917,0.19987709,109930.0,109920.0,0.8270858]
[1751537126222,0.19987709,109930.0,109920.0,0.89003663]
[1751537129321,0.56987709,109930.0,109920.0,0.8359404]
[1751537129518,0.55987709,109930.0,109920.0,0.8359404]
[1751537130422,0.19987709,109930.0,109920.0,0.8359404]
[1751537130923,0.19987709,109930.0,109920.0,0.59070031]
[1751537131123,0.19987709,109930.0,109920.0,0.8359404]
[1751537131825,0.19987709,109930.0,109920.0,1.08235173]
[1751537132926,0.56987709,109930.0,109920.0,1.08235173]
[1751537133624,0.19987709,109930.0,109920.0,1.08235173]
[1751537135315,0.50987709,109930.0,109920.0,1.08235173]
[1751537135520,0.19987709,109930.0,109920.0,1.08235173]
[1751537138229,0.19987709,109930.0,109920.0,1.14644796]
[1751537138434,0.19987709,109930.0,109920.0,1.11033695]
[1751537139329,0.19987709,109930.0,109920.0,1.10323392]
[1751537140129,0.19987709,109930.0,109920.0,1.16733015]
[1751537142433,0.19987709,109930.0,109920.0,1.15733015]
[1751537142730,0.19987709,109930.0,109920.0,0.66567873]
[1751537142930,0.19987709,109930.0,109920.0,1.15733015]
[1751537144032,0.19987709,109930.0,109920.0,1.12100002]
[1751537145335,0.19987709,109930.0,109920.0,1.48100002]
[1751537146137,0.19987709,109930.0,109920.0,1.15100002]
[1751537149840,0.19987709,109930.0,109920.0,1.15099991]
[1751537150533,0.19987709,109930.0,109920.0,1.17774776]
[1751537151440,0.19987709,109930.0,109920.0,0.68609634]
[1751537151642,0.19987709,109930.0,109920.0,1.17774776]
[1751537153941,0.19987709,109930.0,109920.0,1.19577984]
[1751537154543,0.19987709,109930.0,109920.0,1.12365153]
[1751537155041,0.19987709,109930.0,109920.0,1.19577984]
[1751537155843,0.19987709,109930.0,109920.0,1.18511688]
[1751537156242,0.19987709,109930.0,109920.0,1.16753173]
[1751537157341,0.01800429,109930.0,109920.0,1.20389363]
[1751537157535,0.003,109930.0,109920.0,1.71335744]
[1751537157740,0.031,109940.0,109930.0,0.1818727]
[1751537157943,0.031,109940.0,109930.0,1.13901373]
[1751537158241,0.031,109940.0,109930.0,1.15513175]
[1751537158443,0.2781528,109950.0,109940.0,0.1818562]
[1751537158643,0.17,109950.0,109940.0,1.10657226]
[1751537158848,0.27679652,109960.0,109950.0,0.1818397]
[1751537159141,0.59403832,109960.0,109950.0,0.83872382]
[1751537159349,0.08220162,109960.0,109950.0,0.84938414]
[1751537159548,0.08220162,109960.0,109950.0,0.82213118]
[1751537159549,0.26402472,109960.0,109950.0,0.82213118]
[1751537159936,0.26402472,109960.0,109950.0,0.81147086]
[1751537160142,0.26402472,109960.0,109950.0,0.82213095]
[1751537160644,0.27202472,109960.0,109950.0,0.82413095]
[1751537160845,0.30312472,109960.0,109950.0,0.82413095]
[1751537161148,0.30312472,109960.0,109950.0,0.82413059]
[1751537161344,0.30312472,109960.0,109950.0,0.85133508]
[1751537161744,0.30312472,109960.0,109950.0,0.81497748]
[1751537162449,0.12130162,109960.0,109950.0,0.85133508]
[1751537162748,0.01,109960.0,109950.0,1.11650106]
[1751537162942,0.01,109960.0,109950.0,1.56494668]
[1751537163151,0.01476872,109980.0,109970.0,0.1818066]
[1751537163344,0.04476872,109980.0,109970.0,1.03240587]
[1751537163547,0.04476872,109980.0,109970.0,0.78658016]
[1751537163750,0.01476872,109980.0,109970.0,0.78633259]
[1751537163949,0.01476872,109980.0,109970.0,0.79699038]
[1751537164444,0.04696872,109980.0,109970.0,0.80608784]
[1751537164644,0.04696872,109980.0,109970.0,0.83325204]
[1751537164847,0.60875882,109980.0,109970.0,0.85325204]
[1751537165048,0.56875882,109980.0,109970.0,0.83325204]
[1751537165243,0.58375882,109980.0,109970.0,0.80335204]
[1751537165448,0.23375882,109980.0,109970.0,0.87425458]
[1751537165650,0.23775882,109980.0,109970.0,0.87425458]
[1751537165844,0.23775882,109980.0,109970.0,0.86359679]
[1751537166046,0.23775882,109980.0,109970.0,0.89981578]
[1751537166353,0.05596872,109980.0,109970.0,0.89981578]
[1751537166554,0.23775882,109980.0,109970.0,0.89981578]
[1751537166854,0.58775882,109980.0,109970.0,0.86359679]
[1751537167149,0.23775882,109980.0,109970.0,0.86359679]
[1751537167350,0.27025882,109980.0,109970.0,0.86359679]
[1751537170950,0.27025882,109980.0,109970.0,0.93485262]
[1751537172351,0.27025882,109980.0,109970.0,0.88094057]
[1751537172752,0.27025882,109980.0,109970.0,0.90810477]
[1751537173051,0.27025882,109980.0,109970.0,0.88094057]
[1751537174854,0.2554901,109980.0,109970.0,0.80094057]
[1751537175254,0.2554901,109980.0,109970.0,0.91094057]
[1751537176356,0.2554901,109980.0,109970.0,0.93810477]
[1751537176556,0.2554901,109980.0,109970.0,0.69252663]
[1751537176757,0.2554901,109980.0,109970.0,0.93810477]
[1751537177862,0.2554901,109980.0,109970.0,0.82810477]
[1751537178563,0.2554901,109980.0,109970.0,0.94810477]
[1751537178762,0.0737,109980.0,109970.0,0.94810477]
[1751537179657,0.0412,109980.0,109970.0,0.94810477]
[1751537179862,0.009,109980.0,109970.0,0.98090477]
[1751537180952,0.009,109980.0,109970.0,1.09090477]
[1751537181153,0.009,109980.0,109970.0,1.06374057]
[1751537181358,0.009,109980.0,109970.0,1.58637275]
[1751537181862,0.39932975,110000.0,109990.0,0.1817735]
[1751537181863,0.35388665,110000.0,109990.0,0.1817735]
[1751537182062,0.35388665,110000.0,109990.0,0.74735164]
[1751537182255,0.35388665,110000.0,109990.0,0.78005164]
[1751537182455,0.35388665,110000.0,109990.0,0.81285164]
[1751537183363,0.23140265,110000.0,109990.0,0.81285164]
[1751537183563,0.23640265,110000.0,109990.0,0.81285164]
[1751537184272,0.192757,110000.0,109990.0,0.88090164]
[1751537184865,0.224757,110000.0,109990.0,0.88090164]
[1751537185373,0.224757,110000.0,109990.0,0.89155729]
[1751537185769,0.224757,110000.0,109990.0,0.89147903]
[1751537186271,0.220757,110000.0,109990.0,0.89147903]
[1751537187067,0.216757,110000.0,109990.0,0.89047903]
[1751537187266,0.219757,110000.0,109990.0,0.89053107]
[1751537188173,0.219757,110000.0,109990.0,0.68125018]
[1751537188370,0.219757,110000.0,109990.0,0.89395006]
[1751537188570,0.251957,110000.0,109990.0,0.89395006]
[1751537188770,0.251957,110000.0,109990.0,0.88329441]
[1751537189373,0.251957,110000.0,109990.0,0.91073553]
[1751537189775,0.251957,110000.0,109990.0,0.85622022]
[1751537190869,0.631957,110000.0,109990.0,0.85622022]
[1751537191663,0.251957,110000.0,109990.0,0.85622022]
[1751537191872,0.251957,110000.0,109990.0,0.61069249]
[1751537192170,0.570957,110000.0,109990.0,0.85622022]
[1751537192375,0.567957,110000.0,109990.0,0.86687586]
[1751537194378,0.3862,110000.0,109990.0,0.86687586]
[1751537194681,0.215757,110000.0,109990.0,0.86687586]
[1751537194874,0.215757,110000.0,109990.0,0.89757586]
[1751537195275,0.585757,110000.0,109990.0,0.89757586]
[1751537197774,0.215757,110000.0,109990.0,0.89757586]
[1751537197970,0.555757,110000.0,109990.0,0.89757586]
[1751537198370,0.555757,110000.0,109990.0,0.86687586]
[1751537198888,0.555757,110000.0,109990.0,0.83065687]
[1751537199579,0.555757,110000.0,109990.0,0.86687586]
[1751537199884,0.83398473,110000.0,109990.0,0.14141779]
[1751537200090,0.83398473,110000.0,109990.0,0.02712676]
[1751537200274,0.83398473,110000.0,109970.0,0.26214819]
[1751537200275,0.1817901,109980.0,109970.0,0.36184958]
[1751537200476,0.80731783,109980.0,109970.0,0.51730078]
[1751537200684,0.5944901,109980.0,109970.0,0.70730078]
[1751537201386,0.2244901,109980.0,109970.0,0.95282851]
[1751537201579,0.2244901,109980.0,109970.0,1.01763852]
[1751537201780,0.2244901,109980.0,109970.0,1.02163852]
[1751537202079,0.2244901,109980.0,109970.0,0.98541953]
[1751537202289,0.01,109980.0,109970.0,0.98541953]
[1751537202489,0.1917901,109980.0,109970.0,0.98541953]
[1751537203994,0.01,109980.0,109970.0,0.98541953]
[1751537204396,0.01,109980.0,109970.0,0.7709918]
[1751537204397,0.1917901,109980.0,109970.0,0.7709918]
[1751537204593,0.1917901,109980.0,109970.0,0.7087918]
[1751537204897,0.5926901,109980.0,109970.0,0.71331079]
[1751537205195,0.2426901,109980.0,109970.0,0.6770918]
[1751537205690,0.5826901,109980.0,109970.0,0.6770918]
[1751537205896,0.5926901,109980.0,109970.0,0.92261953]
[1751537206194,0.6226901,109980.0,109970.0,0.8513637]
[1751537206493,0.86821783,109980.0,109970.0,0.60583597]
[1751537207196,0.86821783,109980.0,109970.0,0.5786992]
[1751537207895,0.86821783,109980.0,109970.0,0.533248]
[1751537208394,0.86821783,109980.0,109970.0,0.306]
[1751537208692,0.86821783,109980.0,109970.0,0.4878066]
[1751537209288,0.87735314,109980.0,109970.0,0.4878066]
[1751537209495,0.86821783,109980.0,109970.0,0.4878066]
[1751537212188,0.87757142,109980.0,109970.0,0.4878066]
[1751537213190,0.87757142,109980.0,109970.0,0.2178066]
[1751537213490,0.86821783,109980.0,109970.0,0.2178066]
[1751537215390,0.87743731,109980.0,109970.0,0.2178066]
[1751537216698,0.63190958,109980.0,109970.0,0.2178066]
[1751537216898,0.87743731,109980.0,109970.0,0.2178066]
[1751537217599,0.86821783,109980.0,109970.0,0.2178066]
[1751537221297,0.86821783,109980.0,109970.0,0.036]
[1751537222605,0.86821783,109980.0,109970.0,0.2178066]
[1751537222806,0.86821783,109980.0,109970.0,0.036]
[1751537223801,0.88340302,109980.0,109970.0,0.2178066]
[1751537227105,0.88297933,109980.0,109970.0,0.2178066]
[1751537227696,0.88297933,109980.0,109970.0,0.036]
[1751537228312,0.88297933,109980.0,109970.0,0.06313677]
[1751537228512,0.88297933,109980.0,109970.0,0.24494337]
[1751537229903,0.88297933,109980.0,109970.0,0.06313677]
[1751537231510,0.88297933,109980.0,109970.0,0.24494337]
[1751537232014,0.88297933,109980.0,109970.0,0.06313677]
[1751537233905,1.12883854,109980.0,109970.0,0.06313677]
[1751537235812,0.6374516,109980.0,109970.0,0.24494337]
[1751537236016,1.12883854,109980.0,109970.0,0.49063684]
[1751537236214,1.12883854,109980.0,109970.0,0.56005583]
[1751537236810,0.88314507,109980.0,109970.0,0.56005583]
[1751537237017,0.85264507,109980.0,109970.0,0.59055583]
[1751537237419,0.85264507,109980.0,109970.0,0.34486236]
[1751537237717,0.85264507,109980.0,109970.0,0.59055583]
[1751537238110,0.85264507,109980.0,109970.0,0.40874923]
[1751537238315,0.85264507,109980.0,109970.0,0.56005583]
[1751537238316,0.88484507,109980.0,109970.0,0.56005583]
[1751537238616,1.13053854,109980.0,109970.0,0.56005583]
[1751537239217,0.88484507,109980.0,109970.0,0.56005583]
[1751537239517,0.85264507,109980.0,109970.0,0.59215583]
[1751537241318,0.85264507,109980.0,109970.0,0.73215583]
[1751537243510,0.85264507,109980.0,109970.0,0.48646236]
[1751537243711,0.85264507,109980.0,109970.0,0.70005583]
[1751537244019,1.13093854,109980.0,109970.0,0.70005583]
[1751537246314,1.13093854,109980.0,109970.0,0.66383684]
[1751537248821,0.6395516,109980.0,109970.0,0.66383684]
[1751537249019,1.13093854,109980.0,109970.0,0.66383684]
[1751537250420,1.13093854,109980.0,109970.0,0.70005583]
[1751537251623,1.13093854,109980.0,109970.0,0.51824923]
[1751537251822,1.13093854,109980.0,109970.0,0.45436236]
[1751537252326,1.13093854,109980.0,109970.0,0.27255576]
[1751537252625,1.13093854,109980.0,109970.0,0.45436236]
[1751537252817,1.13093854,109980.0,109970.0,0.23633677]
[1751537253018,1.13093854,109980.0,109970.0,0.41814337]
[1751537256327,1.18541443,109980.0,109970.0,0.41814337]
[1751537262324,1.18541443,109980.0,109970.0,0.66383684]
[1751537263233,1.18541443,109980.0,109970.0,0.48203024]
[1751537263528,1.18541443,109980.0,109970.0,0.66383684]
[1751537264931,1.13093854,109980.0,109970.0,0.66383684]
[1751537265238,1.18541443,109980.0,109970.0,0.66383684]
[1751537266235,1.13093854,109980.0,109970.0,0.63670007]
[1751537268537,1.13093854,109980.0,109970.0,0.3910066]
[1751537268726,1.13093854,109980.0,109970.0,0.63670007]
[1751537272144,1.13093854,109980.0,109970.0,0.67303607]
[1751537276447,1.13093854,109980.0,109970.0,0.66395272]
[1751537277049,0.88524507,109980.0,109970.0,0.66395272]
[1751537278350,1.13093854,109980.0,109970.0,0.66395272]
[1751537279750,1.13093854,109980.0,109970.0,0.41825925]
[1751537282253,0.88524507,109980.0,109970.0,0.41825925]
[1751537282948,0.6395516,109980.0,109970.0,0.41825925]
[1751537283156,0.88524507,109980.0,109970.0,0.41825925]
[1751537283852,1.13093854,109980.0,109970.0,0.41825925]
[1751537284051,0.6395516,109980.0,109970.0,0.41825925]
[1751537284254,1.13093854,109980.0,109970.0,0.41825925]
[1751537287755,0.88524507,109980.0,109970.0,0.66395272]
[1751537288353,0.88524507,109980.0,109970.0,0.70028872]
[1751537288354,0.5765516,109980.0,109970.0,0.70028872]
[1751537288555,0.5765516,109980.0,109970.0,0.76034007]
[1751537288759,0.1965516,109980.0,109970.0,1.00603354]
[1751537289054,0.0147615,109980.0,109970.0,1.01603354]
[1751537289255,0.0147615,109980.0,109970.0,0.96151467]
[1751537289459,0.0147615,109980.0,109970.0,1.01601867]
[1751537289956,0.0147615,109980.0,109970.0,1.16155354]
[1751537290157,0.0147615,109980.0,109970.0,1.10704954]
[1751537290364,0.1965516,109980.0,109970.0,0.91578556]
[1751537290861,0.5065516,109980.0,109970.0,0.91578556]
[1751537291462,0.0147615,109980.0,109970.0,0.91578556]
[1751537291663,0.5765516,109980.0,109970.0,0.91578556]
[1751537291962,0.3947615,109980.0,109970.0,0.91578556]
[1751537292660,0.5765516,109980.0,109970.0,0.91578556]
[1751537293859,0.1965516,109980.0,109970.0,0.91578556]
[1751537294063,0.5665516,109980.0,109970.0,0.91578556]
[1751537295663,0.5665516,109980.0,109970.0,0.67950007]
[1751537296060,0.3847615,109980.0,109970.0,0.67950007]
[1751537296360,0.0147615,109980.0,109970.0,0.77009317]
[1751537296562,0.3447615,109980.0,109970.0,0.77009317]
[1751537296758,0.0147615,109980.0,109970.0,0.77009317]
[1751537296965,0.0147615,109980.0,109970.0,1.01578664]
[1751537298069,0.0147615,109980.0,109970.0,1.57764264]
[1751537298261,0.0147615,109980.0,109970.0,1.19764264]
[1751537298461,0.0147615,109980.0,109970.0,1.54764264]
[1751537298860,0.3200983,110000.0,109990.0,0.1817735]
[1751537299160,0.604655,110000.0,109990.0,0.72746697]
[1751537299367,0.5592118,110000.0,109990.0,0.78966697]
[1751537300268,0.062,110000.0,109990.0,0.78966697]
[1751537300468,0.243757,110000.0,109990.0,0.78966697]
[1751537300769,0.243757,110000.0,109990.0,0.79876856]
[1751537301362,0.062,110000.0,109990.0,0.79876856]
[1751537301569,0.243757,110000.0,109990.0,0.58024833]
[1751537301766,0.533757,110000.0,109990.0,0.81684021]
[1751537302971,0.533757,110000.0,109990.0,0.81784021]
[1751537303271,0.533757,110000.0,109990.0,0.79066697]
[1751537303970,0.533757,110000.0,109990.0,0.81784021]
[1751537304171,0.183757,110000.0,109990.0,0.81784021]
[1751537304371,0.46945047,110000.0,109990.0,0.79066697]
[1751537304571,0.80245047,110000.0,109990.0,0.79066697]
[1751537304765,1.04814394,110000.0,109990.0,0.27994674]
[1751537304966,1.08034394,110000.0,109990.0,0.2427735]
[1751537305271,1.08034394,110000.0,109990.0,0.2427736]
[1751537309167,1.08034394,110000.0,109990.0,0.4727736]
[1751537309372,1.08034394,110000.0,109990.0,0.71846707]
[1751537310363,0.83465047,110000.0,109990.0,0.71846707]
[1751537311564,0.83465047,110000.0,109990.0,0.43846707]
[1751537312272,0.83465047,110000.0,109990.0,0.46564031]
[1751537313574,0.83465047,110000.0,109990.0,0.77564031]
[1751537313575,0.588957,110000.0,109990.0,0.77564031]
[1751537313768,0.83465047,110000.0,109990.0,0.46564031]
[1751537316768,0.83465047,110000.0,109990.0,0.75564031]
[1751537317370,0.83465047,110000.0,109990.0,0.50994684]
[1751537317575,1.08034394,110000.0,109990.0,0.46564031]
[1751537319277,0.588957,110000.0,109990.0,0.46564031]
[1751537319576,0.83465047,110000.0,109990.0,0.43846707]
[1751537319772,0.83465047,110000.0,109990.0,0.46572419]
[1751537321081,0.83465047,110000.0,109990.0,0.22003072]
[1751537322073,1.08034394,110000.0,109990.0,0.03825712]
[1751537322375,1.32603741,110000.0,109990.0,0.001]
[1751537322575,1.38060549,110000.0,109990.0,0.001]
[1751537322783,0.1817735,109990.0,109980.0,0.02725712]
[1751537323077,1.08566044,109990.0,109980.0,0.02725712]
[1751537323769,0.83997285,109990.0,109980.0,0.02725712]
[1751537323968,0.1807901,109980.0,109970.0,0.04403478]
[1751537324175,0.80898945,109980.0,109970.0,0.21403478]
[1751537324374,0.80598945,109980.0,109970.0,0.21403478]
[1751537324776,0.80598945,109980.0,109970.0,0.39584138]
[1751537325176,0.80598945,109980.0,109970.0,0.39784138]
[1751537325479,0.80598945,109980.0,109970.0,0.40182053]
[1751537325874,0.83658945,109980.0,109970.0,0.22001393]
[1751537326474,0.83658945,109980.0,109970.0,0.40182053]
[1751537327175,0.84590686,109980.0,109970.0,0.40182053]
[1751537328184,0.84590686,109980.0,109970.0,0.37458426]
[1751537330290,0.60020751,109980.0,109970.0,0.37458426]
[1751537330475,0.84590686,109980.0,109970.0,0.37458426]
[1751537331081,0.60020751,109980.0,109970.0,0.37458426]
[1751537331281,0.84590686,109980.0,109970.0,0.37458426]
[1751537333693,0.84590686,109980.0,109970.0,0.19277766]
[1751537334285,0.84590686,109980.0,109970.0,0.37458426]
[1751537335289,0.60020751,109980.0,109970.0,0.37458426]
[1751537335585,0.84590686,109980.0,109970.0,0.37458426]
[1751537335792,0.84590686,109980.0,109970.0,0.40568426]
[1751537335990,0.84590686,109980.0,109970.0,0.2071]
[1751537336185,0.84590686,109980.0,109970.0,0.176]
[1751537336791,1.09160621,109980.0,109970.0,0.006]
[1751537337889,1.09160621,109980.0,109970.0,0.01956019]
[1751537342801,1.27346221,109980.0,109970.0,0.01956019]
[1751537342988,0.1818231,109960.0,109950.0,0.06347351]
[1751537343193,0.1818397,109950.0,109940.0,0.07962779]
[1751537343498,1.1391384,109950.0,109940.0,0.04615428]
[1751537343698,0.89343905,109950.0,109940.0,0.04615428]
[1751537343895,0.89343905,109950.0,109940.0,0.28615428]
[1751537344099,0.1818562,109940.0,109930.0,0.38163627]
[1751537344300,0.77755555,109940.0,109930.0,0.67350907]
[1751537344495,0.5593562,109940.0,109930.0,0.49163627]
[1751537344699,0.80505555,109940.0,109930.0,0.67350907]
[1751537344898,0.87669039,109940.0,109930.0,0.89350907]
[1751537345096,0.87669039,109940.0,109930.0,0.56350907]
[1751537345295,0.87669039,109940.0,109930.0,0.62350907]
[1751537346505,0.63099104,109940.0,109930.0,0.5962728]
[1751537346805,0.87669039,109940.0,109930.0,0.5962728]
[1751537347402,0.88581702,109940.0,109930.0,0.5962728]
[1751537347699,0.89181702,109940.0,109930.0,0.3047728]
[1751537348803,0.89181702,109940.0,109930.0,0.061]
[1751537348804,0.92421702,109940.0,109930.0,0.061]
[1751537349202,0.92421702,109940.0,109930.0,0.001]
[1751537350314,0.1818893,109920.0,109910.0,0.06165586]
[1751537350498,1.06799615,109920.0,109910.0,0.08905586]
[1751537350697,1.13269615,109920.0,109910.0,0.06181959]
[1751537351105,1.13269615,109920.0,109910.0,0.00181959]